Cogmind - Beta 16 @@@ ROGUE MODE // 2025.12.04 @ 20:20:09 Player: shapeshifter Result: Core destroyed Performance ------------- Evolutions (9) 4500 Regions Visited (23) 4600 Robots Destroyed (432) 2160 Value Destroyed (23766) 23766 Prototype IDs (58) 1160 Alien Tech Used (9) 1800 Bonus (27750) 27750 TOTAL SCORE: 65736 Bonus ------- High Alert Combat Kills 10640 Follower Combat Kills 598 Met Zhirov 300 Met Warlord at Base 500 MAIN.C Attacked Warlord 500 Warlord Defense Kills 5752 Found Hidden Lab 3000 Used Core Reset Matrix 3000 Met Warlord at Research 2000 Met Sigix 2000 Met Warlord at Command 2000 Friendly Fire -2540 Cogmind --------- Core Integrity 0/1600 Matter 296/300 Energy 99/100 System Corruption 0% Temperature Cool (0) Movement Core (50) Location -1/Command Parts ------- > --- POWER (4) -------- (None) > --- PROPULSION (8) --- (None) > --- UTILITY (10) ----- Experimental Coolant Injector Hacking Suite > --- WEAPON (4) ------- (None) > --- INVENTORY (5) ---- High-powered Transdimensional Reconstructor Sigix Containment Pod Sigix Corpse Sigix Corpse Peak State ------------ > --- POWER ------------ Fission-Quantum Core > --- PROPULSION ------- Hovering Antigrav-ITA Exoskeleton > --- UTILITY ---------- Armored Scrap Engine Experimental Coolant Injector Large Storage Unit Precision Matter Filter Advanced Weapon Cycler Improved Hacking Suite Advanced Dynamic Insulation System Long-range Tractor Beam > --- WEAPON ----------- Tiamat Missile Launcher Prc. Kinetic Battle Construct/G Sigix Broadsword > --- INVENTORY -------- Advanced Energy Well Improved Matter Compressor Advanced Force Field Advanced Point Defense System Dimensional Node Initializer High-powered Transdimensional Reconstructor High-powered Transdimensional Reconstructor Core Reset Matrix Sigix Terminator Advanced Remote Datajack Sigix Containment Pod Sigix Corpse Sigix Corpse [Rating: 187] Favorites ----------- Power Constructs Engine Cooled Deuterium Engine Power Core Constructs Propulsion Light Treads Treads Light Treads Leg Carbon-fiber Leg Wheel Compact Wheel Hover Unit Constructs Utility Large Storage Unit Device Armored Scrap Engine Storage Large Storage Unit Processor Advanced Signal Interpreter Hackware Hacking Suite Protection Hardened Medium Armor Plating Weapon Constructs Energy Gun Cooled Pulse Rifle Energy Cannon Improved Matter Neutralizer Ballistic Gun Constructs Ballistic Cannon Mini Assault Cannon Launcher Scatter Rocket Array Special Weapon Remote Datajack Slashing Weapon Nanosword Piercing Weapon Kinetic Spear Build | -11 -10 -10 -8 -7 -7 -7 -5 -5 -5 -5 -4 -4 -4 -4 -4 -3 -3 -3 -3 -2 -2 -1 -1 ------- Run | Yrd Mat Sub Mat Fac Sto Rec Fac Upp Upp War Pro Fac Upp Upp Zhi Pro Res Arm Lab Res Qua Acc Com Slots Evolved 18 | . . . 4 2 . . 4 . . . . 2 . . . . 2 . . 2 . 2 . Power 3 | . . . . . . . 1 . . . . . . . . . 1 . . 1 . . . Propulsion 6 | . . . 1 1 . . 2 . . . . . . . . . . . . 1 . 1 . Utility 7 | . . . 2 1 . . . . . . . 2 . . . . 1 . . . . 1 . Weapon 2 | . . . 1 . . . 1 . . . . . . . . . . . . . . . . Parts Attached 115 | 7 6 1 23 9 16 4 5 . . 4 1 6 . . 1 2 2 10 . 9 4 1 4 Power 6 | 1 1 . 2 . 2 . . . . . . . . . . . . . . . . . . Engine 3 | 1 1 . . . 1 . . . . . . . . . . . . . . . . . . Core 3 | . . . 2 . 1 . . . . . . . . . . . . . . . . . . Reactor . | . . . . . . . . . . . . . . . . . . . . . . . . Propulsion 18 | 2 2 . 8 4 2 . . . . . . . . . . . . . . . . . . Treads 13 | 2 2 . 3 4 2 . . . . . . . . . . . . . . . . . . Leg 3 | . . . 3 . . . . . . . . . . . . . . . . . . . . Wheel 2 | . . . 2 . . . . . . . . . . . . . . . . . . . . Hover . | . . . . . . . . . . . . . . . . . . . . . . . . Flight . | . . . . . . . . . . . . . . . . . . . . . . . . Utility 52 | 2 2 . 4 4 1 1 5 . . 2 1 6 . . 1 2 2 4 . 8 3 1 3 Device 30 | 1 . . 3 . 1 1 3 . . 2 1 3 . . . 1 1 3 . 4 3 1 2 Storage 3 | 1 1 . . . . . 1 . . . . . . . . . . . . . . . . Processor 7 | . . . . 1 . . 1 . . . . 1 . . . 1 1 1 . 1 . . . Hackware 7 | . 1 . . 1 . . . . . . . 1 . . . . . . . 3 . . 1 Protection 5 | . . . 1 2 . . . . . . . 1 . . 1 . . . . . . . . Artifact . | . . . . . . . . . . . . . . . . . . . . . . . . Weapon 39 | 2 1 1 9 1 11 3 . . . 2 . . . . . . . 6 . 1 1 . 1 Energy Gun 11 | . . . 5 . 3 1 . . . 1 . . . . . . . 1 . . . . . Energy Cannon 5 | . . . 1 . 2 1 . . . . . . . . . . . 1 . . . . . Ballistic Gun 11 | 2 1 . 3 1 4 . . . . . . . . . . . . . . . . . . Ballistic Cannon 1 | . . . . . 1 . . . . . . . . . . . . . . . . . . Launcher 6 | . . 1 . . 1 . . . . 1 . . . . . . . 1 . 1 . . 1 Special Weapon 2 | . . . . . . 1 . . . . . . . . . . . 1 . . . . . Impact Weapon . | . . . . . . . . . . . . . . . . . . . . . . . . Slashing Weapon 2 | . . . . . . . . . . . . . . . . . . 1 . . 1 . . Piercing Weapon 1 | . . . . . . . . . . . . . . . . . . 1 . . . . . Special Melee Weapon . | . . . . . . . . . . . . . . . . . . . . . . . . Unidentified Prototypes 39 | . . . 3 . 11 1 . 1 . 3 . 2 . . 2 . . 7 . 2 2 . 5 Parts Lost 54 | . 3 3 8 . . 4 . . . 1 . 1 . 1 . 2 . 5 . 4 2 1 19 Power 6 | . 1 . 2 . . . . . . . . . . . . . . . . . . . 3 Propulsion 14 | . . 1 3 . . 2 . . . . . . . . . . . . . . . 1 7 Utility 21 | . 1 . . . . 2 . . . 1 . 1 . . . . . 5 . 4 1 . 6 Weapon 13 | . 1 2 3 . . . . . . . . . . 1 . 2 . . . . 1 . 3 Highest Loss Streak 10 | . 2 3 4 . . 3 . . . 1 . 1 . 1 . 1 . 4 . 2 2 1 10 To Critical Strikes 1 | . . . . . . . . . . . . . . . . . . . . . . 1 . Average Backups 11 | 3 6 6 11 14 13 9 12 13 14 13 14 14 12 12 12 14 14 13 14 13 10 10 9 Power . | . . . . 1 . . . . . . . . . . . . . . . . . . . Propulsion 1 | 1 2 2 1 3 2 2 . . . . . . . . . . . . . . . . . Utility 7 | . 2 3 5 4 3 3 11 12 13 11 12 11 10 10 10 12 12 10 12 11 6 4 4 Weapon 2 | . 1 . 2 4 6 2 1 1 . 1 1 . . . . . . 1 2 1 1 1 . Tool/Special . | . . . . . . . . . . . . . . . . . . . . . . . . Unused Backups 64 | . . . 5 3 14 8 4 1 1 7 . 3 . . 1 . . 7 . 2 3 . 5 Power 1 | . . . . . 1 . . . . . . . . . . . . . . . . . . Propulsion 11 | . . . . 1 2 8 . . . . . . . . . . . . . . . . . Utility 38 | . . . 4 1 5 . 4 1 1 7 . 2 . . . . . 6 . 1 3 . 3 Weapon 10 | . . . 1 . 5 . . . . . . 1 . . . . . 1 . 1 . . 1 Tool/Special 4 | . . . . 1 1 . . . . . . . . . 1 . . . . . . . 1 Average Slot Usage (%) 63 | . 89 87 87 96 99 66 47 47 50 46 52 54 52 50 48 45 47 52 45 50 48 44 36 Engine 2 | . 12 14 1 . 1 6 5 5 5 3 . . . . . . . . . . . . . Core 2 | . . . 6 7 5 . . . . . 5 5 5 5 5 4 . . . . . . 1 Reactor 1 | . . . . . . . . . . 1 . . . . . . 4 4 4 3 4 3 1 Treads 7 | . 28 21 9 28 29 8 . . . . . . . . . . . . . . . . . Leg 1 | . . . 12 . . . . 1 . 2 . . . . . . . . . . . . . Hover 1 | . . . . . . 2 1 1 . . . . 1 5 5 2 . . . 1 4 3 2 Flight 1 | . . . . . . . . 2 5 2 . 1 3 . . 2 4 3 4 1 . . . Device 15 | . 4 . 14 9 8 20 15 11 16 15 21 19 22 25 23 19 20 18 13 12 22 21 13 Storage 6 | . 14 14 9 7 7 7 5 5 5 5 5 5 5 5 5 5 4 4 4 4 4 3 2 Processor 2 | . . . . 4 5 . 1 5 5 5 . 4 5 5 3 3 7 7 4 4 . . . Hackware 3 | . 1 14 5 4 7 . . . . . . . . . . . . . . 7 4 3 6 Protection 1 | . . . 3 7 7 1 . . . . . 4 2 . 1 1 . . . . . . . Energy Gun 2 | . . . 15 3 . 4 1 . . . . . . . . . . 2 . 2 4 3 . Energy Cannon 1 | . . . . . . . 3 4 . 2 1 2 5 5 5 5 4 3 . . . . . Ballistic Gun 6 | . 28 16 6 18 21 6 . . . . . . . . . . . . . . . . 2 Special Weapon 1 | . . . . . . 2 5 5 5 1 2 . . . . . 1 4 4 3 . . . Peak Build Rating 187 | 7 10 10 35 39 49 64 76 79 75 118 116 122 132 132 128 121 128 151 126 172 187 160 170 Average Rating 82 | 4 7 9 28 35 45 50 62 69 69 88 113 118 125 126 123 114 121 131 124 150 163 156 121 On Entrance 84 | . 7 10 8 30 39 49 50 74 68 70 98 115 118 127 126 120 110 128 121 126 137 154 146 Avg Prop Armor Cover (%) 10 | . . . 10 . . . . . . . . . . . . . . . . . . . . Naked Turns . | . . . . . . . . . . . . . . . . . . . . . . . . Heaviest Build 90 | 15 30 28 42 44 53 53 40 50 54 78 64 72 77 69 61 61 51 63 49 88 90 74 73 Greatest Support 158 | 40 40 40 60 88 88 88 68 68 68 81 88 88 88 88 88 88 88 88 88 158 87 87 120 Greatest Overweight (x) 16 | . . 1 2 . . 2 . . . 1 . . . . . . . . . 1 1 1 16 Average Overweight (x) . | . . . . . . 1 . . . . . . . . . . . . . . . . . Largest Inventory Capacity 15 | 8 15 15 15 15 15 15 15 15 15 15 15 15 15 15 15 15 15 15 15 15 15 15 15 Average Capacity 14 | 6 14 15 15 15 15 15 15 15 15 15 15 15 15 15 15 15 15 15 15 15 15 15 14 Most Carried 15 | 6 9 7 15 15 15 15 15 15 15 15 15 15 14 14 15 15 15 15 15 15 15 15 15 Average Carried 12 | 3 6 6 11 14 13 9 13 14 14 14 14 14 13 13 13 15 14 14 15 14 14 15 14 Final Capacity 15 | 8 15 15 15 15 15 15 15 15 15 15 15 15 15 15 15 15 15 15 15 15 15 15 15 Final Carried 15 | 5 7 7 15 15 15 12 15 14 15 14 15 14 14 13 15 15 15 15 15 13 15 15 15 Scrap Engine Consumption 280 | . . . . . . 60 19 8 3 30 6 10 2 . 3 9 5 22 . 70 5 2 26 Constructs Created 4 | . . . . . . 3 . . . . . . . . . . . . . . . . 1 Constructs Modified 125 | . . . . . . 22 5 8 1 15 3 4 2 . . 4 . 8 3 33 4 . 13 Class Distribution -------------------- 24% | Construct 13% | Commander-Construct 12% | Mutant 11% | Generator-Mutant 9% | Scavenger-Gunner 7% | Scavenger-Tank 6% | Generator-Construct 4% | Hacker-Mutant 3% | Commander-Gunner Dominant Class ---------------- Mutant | -10/Materials Mutant | -10/Subcaves Scavenger-Tank | -8/Materials Scavenger-Gunner | -7/Factory Scavenger-Gunner | -7/Storage Commander-Construct | -7/Recycling Commander-Construct | -5/Factory Construct | -5/Upper Caves Construct | -5/Upper Caves Construct | -5/Warlord Construct | -4/Proximity Caves Construct | -4/Factory Construct | -4/Upper Caves Construct | -4/Upper Caves Construct | -4/Zhirov Construct | -3/Proximity Caves Mutant | -3/Research Scout | -3/Armory Mutant | -3/Lab Generator-Construct | -2/Research Generator-Construct | -2/Quarantine Generator-Mutant | -1/Access Generator-Mutant | -1/Command Resources | -11 -10 -10 -8 -7 -7 -7 -5 -5 -5 -5 -4 -4 -4 -4 -4 -3 -3 -3 -3 -2 -2 -1 -1 ----------- Run | Yrd Mat Sub Mat Fac Sto Rec Fac Upp Upp War Pro Fac Upp Upp Zhi Pro Res Arm Lab Res Qua Acc Com Matter Collected 5809 | 312 389 . 500 213 682 308 66 164 82 303 102 56 197 80 . 701 . 263 . 933 123 226 109 Remotely 301 | . . . . . . . . . . . . . . . . . . . . . 46 226 29 Salvage Created 8342 | 164 619 50 947 283 954 272 242 409 161 1326 131 566 282 183 . 614 . 91 . 649 161 209 29 Parts 394 | 9 37 3 57 16 54 8 6 13 12 52 9 28 6 2 . 20 . 4 . 39 8 11 . Haulers Intercepted 4 | . . . . . 4 . . . . . . . . . . . . . . . . . . Recyclers Shooed 1 | 1 . . . . . . . . . . . . . . . . . . . . . . . Parts Field Recycled . | . . . . . . . . . . . . . . . . . . . . . . . . Retrieved Matter . | . . . . . . . . . . . . . . . . . . . . . . . . Parts Self-Destructed 40 | . . . . . . . . 6 7 . 6 . 3 2 . 16 . . . . . . . Prevented 10 | . . . . . . . . 7 3 . . . . . . . . . . . . . . Parts Restored . | . . . . . . . . . . . . . . . . . . . . . . . . Kills | -11 -10 -10 -8 -7 -7 -7 -5 -5 -5 -5 -4 -4 -4 -4 -4 -3 -3 -3 -3 -2 -2 -1 -1 ------- Run | Yrd Mat Sub Mat Fac Sto Rec Fac Upp Upp War Pro Fac Upp Upp Zhi Pro Res Arm Lab Res Qua Acc Com Combat Hostiles Destroyed 370 | . 11 2 23 2 11 5 5 10 10 52 6 15 2 5 . 10 . 2 . 14 8 7 170 Melee 1 | . . . . . . . . . . . . . . . . . . . . 1 . . . Guns 51 | . 11 . 21 2 11 5 . . . . . . . . . . . . . 1 . . . Cannons 42 | . . . . . . . 5 9 1 3 2 2 2 3 . 10 . 1 . 4 . . . AOE 269 | . . 2 . . . . . . 9 49 4 10 . 2 . . . . . 8 8 7 170 Classes Destroyed 27 | 2 5 1 2 1 3 1 . . . 7 . . 1 . . 1 . . . 1 . . 2 Worker 11 | . 3 . . 1 . . . . . . . 3 . . . . . . . . . 2 2 Builder 4 | . 1 . 1 1 . . . . . . . 1 . . . . . . . . . . . Tunneler 6 | 3 1 . 1 . . . . . . . . . . . . . . . . . . 1 . Hauler 4 | . . . . . 4 . . . . . . . . . . . . . . . . . . Recycler 5 | 1 . . 1 2 1 . . . . . . . . . . . . . . . . . . Carrier 18 | . . . . . . . . . . . . . . . . . . . . . . . 18 Mechanic 2 | . . . . . 1 . . . . 1 . . . . . . . . . . . . . Operator 3 | . 1 . 1 . . . . . . . . . . . . . . . . 1 . . . Drone 1 | . . . . . . . . . . . . . . . . 1 . . . . . . . Watcher 9 | . 2 . 3 . . . . . . . . 1 . . . . . 1 . . . . 2 Swarmer 79 | . . . 10 . . . . 6 9 5 5 9 . . . 2 . . . 4 4 5 20 Cutter 6 | . . . . . . . . . . . . . . . . . . . . . . . 6 Saboteur 8 | . . . . . . . . . . 2 . . . . . . . . . . . . 6 Grunt 127 | . 11 . 8 . 5 . 5 3 1 30 . 2 . 3 . 6 . . . 1 4 . 48 Brawler 15 | . . . . . . . . . . 1 . . . 1 . 1 . . . . . . 12 Duelist 13 | . . . . . . . . . . 1 . . . . . . . . . . . . 12 Protector 10 | . . . . . . . . . . 4 . . . . . . . . . . . . 6 Sentry 16 | . . . 5 1 5 1 . 1 . . 1 1 . . . . . . . . . . 1 Demolisher 8 | . . . . . . 1 . . . 1 . . . . . . . . . . . . 6 Specialist 14 | . . . . . . . . . . 2 . . . . . . . . . . . . 12 Hunter 25 | . . . . . 1 . . . . 2 . . . 1 . . . . . . . 2 19 Programmer 33 | . . . . 1 . 1 . . . . . 3 2 . . . . 2 . 2 . . 22 Behemoth 1 | . . . . . . . . . . 1 . . . . . . . . . . . . . Striker 2 | . . . . . . . . . . . . . . . . . . . . 2 . . . Executioner 8 | . . . . . . . . . . 3 . . . . . . . . . 5 . . . Subdweller 3 | . . 2 . . . 1 . . . . . . . . . . . . . . . . . Decomposer 1 | . . . . . . . . . . . . . 1 . . . . . . . . . . Samaritan 3 | . . . . . . . . . . . . . 3 . . . . . . . . . . Best Kill Streak 189 | 4 4 2 6 3 3 2 5 4 5 16 9 7 2 4 . 4 . 2 . 5 4 5 189 Combat Bots Only 168 | . 2 2 5 1 2 2 5 4 5 15 9 6 2 4 . 4 . 2 . 5 4 4 168 Max Kills in Single Turn 189 | 1 2 1 2 2 1 1 1 1 4 13 4 6 1 1 . 1 . 1 . 3 2 3 189 Gunslinging 1 | . . . 1 . . . . . . . . . . . . . . . . . . . . Exploded 168 | . . 1 . . . . . . 4 13 4 5 . 1 . . . . . 3 2 2 168 Melee 1 | . . . . . . . . . . . . . . . . . . . . 1 . . . Uniques/NPCs Destroyed 1 | . . . . . . 1 . . . . . . . . . . . . . . . . . 01-MTF (-7/Recycling) Combat | -11 -10 -10 -8 -7 -7 -7 -5 -5 -5 -5 -4 -4 -4 -4 -4 -3 -3 -3 -3 -2 -2 -1 -1 -------- Run | Yrd Mat Sub Mat Fac Sto Rec Fac Upp Upp War Pro Fac Upp Upp Zhi Pro Res Arm Lab Res Qua Acc Com Hostile Shots Fired 1351 | . 85 14 123 35 144 103 21 38 14 57 23 81 10 79 . 78 . 37 . 117 84 51 157 Missed 504 | . 30 1 32 17 65 36 7 11 9 22 6 34 7 35 . 23 . 11 . 51 30 19 58 Hits 847 | . 55 13 91 18 79 67 14 27 5 35 17 47 3 44 . 55 . 26 . 66 54 32 99 Melee 6 | . . . . . . . . . . . . . . . . . . . . 5 . 1 . Projectile 841 | . 55 13 91 18 79 67 14 27 5 35 17 47 3 44 . 55 . 26 . 61 54 31 99 AOE 7 | . . 5 . . 1 . . . . . . . . . . . . . . . . . 1 Critical Strikes 28 | . 1 1 1 . 1 . 1 1 . 2 . . . 2 . 2 . 1 . 3 6 1 5 Part Disruptions 1 | . . . . . . . . . . . . . . . . . . . . . 1 . . Actively Blocked 1 | . . . . . . . . . . . . . . . . . . . . . 1 . . Damage Taken 18676 | . 670 449 1158 161 691 642 253 263 197 674 341 919 60 883 . 1151 . 1828 . 1518 1368 774 4676 Core 3305 | . 157 42 149 . 64 75 46 91 30 55 43 91 19 99 . 199 . 190 . 206 100 91 1558 Absorbed by Shields 1060 | . . . . . . . 37 150 . . . . . . . . . . . 734 139 . . Redirected to Shielding 133 | . . . . . . . . . . . . . . . . 133 . . . . . . . Regen/Repaired (Parts) 5436 | . . . . . . 10 150 102 42 357 483 244 60 . . 783 . 326 78 1630 282 4 885 Core Remaining (%) 70 | 100 . 20 72 . . 80 . . . . 73 . . . . 64 . . 80 . 71 . . Volleys Fired 619 | 7 70 12 64 12 35 32 20 26 15 24 4 45 12 10 . 28 2 82 . 48 16 8 47 Largest 3 | 2 2 2 3 3 3 3 1 1 1 1 1 1 1 1 . 1 1 2 . 1 1 1 1 Hottest 262 | 40 40 50 155 113 84 92 195 98 98 98 98 59 262 262 . 262 87 200 . 95 129 46 129 Shots Fired 915 | 14 137 21 150 35 102 62 20 26 15 24 4 45 12 10 . 28 2 90 . 48 15 8 47 Gun 561 | 14 137 15 150 35 102 47 . . . . . . . . . . . 4 . 9 6 . 42 Cannon 262 | . . . . . . 2 20 26 12 12 3 42 12 8 . 28 2 76 . 19 . . . Launcher 60 | . . 6 . . . . . . 3 8 1 3 . 2 . . . . . 15 9 8 5 Special 32 | . . . . . . 13 . . . 4 . . . . . . . 10 . 5 . . . Kinetic 471 | 14 137 15 48 29 97 30 . 1 12 . 1 12 . . . . . 10 . 24 . . 41 Thermal 220 | . . . 102 6 5 19 20 . . . . . . . . . . 62 . 4 . . 2 Explosive 51 | . . 6 . . . . . . 3 . 1 3 . 2 . . . . . 15 9 8 4 Electromagnetic 68 | . . . . . . . . 25 . . . 30 4 . . . . 3 . . 6 . . Entropic 73 | . . . . . . . . . . 20 2 . 8 8 . 28 2 5 . . . . . Robot Hit Streak 15 | 3 10 6 15 9 9 15 7 7 4 4 2 4 5 4 . 6 . 11 . 13 13 6 9 Robot Miss Streak 12 | 1 5 2 9 2 2 2 4 2 12 5 1 10 2 6 . 4 . 3 . 5 1 2 2 Penetration Max 1 | . . . . 1 1 . . . . . . . . . . . . . . . . . . Secondary Targets 6 | . 2 . 4 . . . . . . . . . . . . . . . . . . . . Max Gunslinging Chain 1 | . 1 . 1 . . . . . . . . . . . . . . . . . . . . Shots Hit Robots 533 | 8 79 16 91 21 61 49 8 15 9 12 2 26 10 6 . 23 . 19 . 40 8 6 24 Core Hits 505 | 5 31 4 47 10 31 10 5 8 21 68 9 31 5 27 . 17 . 1 . 23 22 11 119 Critical Kills 5 | . . . . . 1 1 . 1 1 . . . . . . . . . . 1 . . . Critical Parts Destroyed 4 | . . . 1 1 . . . 1 . . . . . . . . . . . 1 . . . Critical Strikes 15 | . . . 5 1 1 1 . 2 2 . . . . . . . . . . 3 . . . Burn 4 | . . . 4 . . . . . . . . . . . . . . . . . . . . Destroy 10 | . . . 1 1 1 1 . 2 2 . . . . . . . . . . 2 . . . Sever 1 | . . . . . . . . . . . . . . . . . . . . 1 . . . Melee Attacks 26 | . . . . . . . . . . . . . . . . . . 4 . 13 9 . . Impact . | . . . . . . . . . . . . . . . . . . . . . . . . Slashing 26 | . . . . . . . . . . . . . . . . . . 4 . 13 9 . . Piercing . | . . . . . . . . . . . . . . . . . . . . . . . . Sneak Attacks . | . . . . . . . . . . . . . . . . . . . . . . . . Combat Hostiles . | . . . . . . . . . . . . . . . . . . . . . . . . Follow-up Attacks . | . . . . . . . . . . . . . . . . . . . . . . . . Damage Inflicted 276804 | 109 997 369 1750 425 1250 762 586 760 815 12140 529 1957 874 1155 . 1532 . 451 . 2578 1685 1459 244621 Guns 6130 | 109 997 116 1750 425 1250 762 . . . . . . . . . . . 108 . 99 . . 514 Cannons 6813 | . . . . . . . 586 760 270 414 176 1184 874 350 . 1523 . 343 . 333 . . . Explosions 263327 | . . 253 . . . . . . 545 11726 353 773 . 805 . . . . . 1643 1683 1459 244087 Melee 503 | . . . . . . . . . . . . . . . . . . . . 503 . . . Ramming 31 | . . . . . . . . . . . . . . . . 9 . . . . 2 . 20 Kinetic 6047 | 109 997 116 638 359 1211 514 . . 270 . 87 693 . . . . . 107 . 432 . . 514 Thermal 245810 | . . . 1112 66 39 248 586 . . . . . . . . . . 236 . . . . 243523 Explosive 8078 | . . 253 . . . . . . 545 . 353 773 . 805 . . . . . 1643 1683 1459 564 Electromagnetic 1533 | . . . . . . . . 760 . . . 491 174 . . . . 108 . . . . . Impact . | . . . . . . . . . . . . . . . . . . . . . . . . Slashing 503 | . . . . . . . . . . . . . . . . . . . . 503 . . . Piercing . | . . . . . . . . . . . . . . . . . . . . . . . . Entropic 14802 | . . . . . . . . . . 12140 89 . 700 350 . 1523 . . . . . . . Highest Corruption 33 | . 1 1 . 1 1 1 . . . . . 11 11 11 11 11 . 33 33 2 7 . 8 Average Corruption 3 | . 1 1 . 1 1 1 . . . . . 4 11 11 11 11 . 25 33 1 2 . 4 Corruption Purged . | . . . . . . . . . . . . . . . . . . . . . . . . Corruption Blocked . | . . . . . . . . . . . . . . . . . . . . . . . . Effects 141 | . 9 2 . 1 11 16 . . . . . 6 13 7 3 14 . 16 15 11 7 . 10 Message Errors 31 | . 2 2 . . 1 4 . . . . . 1 3 1 1 3 . 3 6 . . . 4 Matter Fused 46 | . 2 . . . 4 7 . . . . . 3 7 4 1 5 . 4 3 3 2 . 1 Heat Flow Errors 13 | . 1 . . . . 2 . . . . . . 1 . . 1 . 1 1 4 2 . . Energy Discharges 10 | . 1 . . . 2 . . . . . . 1 . . . 1 . 1 1 2 . . 1 Parts Rejected 3 | . . . . . . . . . . . . . . . . 2 . . . . . . 1 Data Loss (minor) 16 | . . . . . 2 2 . . . . . . 1 1 . 1 . 1 3 1 1 . 3 Data Loss (major) 5 | . . . . . . 1 . . . . . . 1 1 1 . . . 1 . . . . Misfires 1 | . . . . . 1 . . . . . . . . . . . . . . . . . . Alerts 7 | . 1 . . . 1 . . . . . . 1 . . . 1 . 1 . 1 1 . . Misdirections 2 | . . . . . . . . . . . . . . . . . . 2 . . . . . Weapon Failures 7 | . 2 . . 1 . . . . . . . . . . . . . 3 . . 1 . . Overload Shots . | . . . . . . . . . . . . . . . . . . . . . . . . Overflow Damage 28622 | . . . . . . . 48 102 1 357 6 313 270 30 . . . 60 . 176 65 171 27023 Projectiles 829 | . . . . . . . 48 102 . 6 . 313 270 30 . . . 60 . . . . . Explosions 27709 | . . . . . . . . . 1 351 6 . . . . . . . . 92 65 171 27023 Melee 84 | . . . . . . . . . . . . . . . . . . . . 84 . . . Knockbacks 6 | . . . . . . . . . 2 . . 2 . . . . . . . 2 . . . Impact . | . . . . . . . . . . . . . . . . . . . . . . . . Kinetic 6 | . . . . . . . . . 2 . . 2 . . . . . . . 2 . . . Secondary . | . . . . . . . . . . . . . . . . . . . . . . . . Self-Inflicted Damage 1733 | . . . . . . . . . 100 . 70 50 . 80 . 4 . . . . 1 159 1269 Shots 21 | . . . . . . . . . 4 . 3 4 . 4 . . . . . . . 4 2 Rammed 3 | . . . . . . . . . . . . . . . . 1 . . . . 1 . 1 Targets Rammed 7 | . . . . . . . . . . . . . . . . 1 . . . . 1 . 5 Kicked 4 | . . . . . . . . . . . . . . . . . . . . . . . 4 Crushed . | . . . . . . . . . . . . . . . . . . . . . . . . Highest Temperature 534 | . 245 . 129 31 11 172 86 253 . 33 . 375 534 188 . 277 20 196 89 227 292 199 194 Average Temperature 94 | . 51 . 33 10 6 92 48 89 . 16 . 118 166 104 . 107 15 89 54 91 114 103 87 Received Heat Transfer 2391 | . 396 48 441 30 243 204 128 13 45 198 . 84 . 168 . 261 . . . 34 50 . 48 Effects 3 | . . . . . . . . 1 . . . . 2 . . . . . . . . . . Shutdowns 1 | . . . . . . . . . . . . . 1 . . . . . . . . . . Energy Bleed 2 | . . . . . . . . 1 . . . . 1 . . . . . . . . . . Siege Activations . | . . . . . . . . . . . . . . . . . . . . . . . . Martial Activations . | . . . . . . . . . . . . . . . . . . . . . . . . Shielding Activations . | . . . . . . . . . . . . . . . . . . . . . . . . Robots Disrupted . | . . . . . . . . . . . . . . . . . . . . . . . . Combat Hostiles . | . . . . . . . . . . . . . . . . . . . . . . . . Robots Corrupted 5 | . . . . . . . . 1 . . . 3 . . . . . 1 . . . . . Combat Hostiles 4 | . . . . . . . . 1 . . . 3 . . . . . . . . . . . Parts Fried 9 | . . . . . . . . 2 . . . 5 2 . . . . . . . . . . Impact Corruptions . | . . . . . . . . . . . . . . . . . . . . . . . . Robots Melted 2 | . . . 2 . . . . . . . . . . . . . . . . . . . . Combat Hostiles 2 | . . . 2 . . . . . . . . . . . . . . . . . . . . Parts Melted 9 | . . . 5 2 . . . . . 2 . . . . . . . . . . . . . Heat Transferred 4276 | . . . 2627 148 74 519 333 . . . . . . . . . . 185 . . . . 390 Parts Sabotaged . | . . . . . . . . . . . . . . . . . . . . . . . . Parts Stolen . | . . . . . . . . . . . . . . . . . . . . . . . . Parts Stripped . | . . . . . . . . . . . . . . . . . . . . . . . . Power Chain Reactions . | . . . . . . . . . . . . . . . . . . . . . . . . Alert | -11 -10 -10 -8 -7 -7 -7 -5 -5 -5 -5 -4 -4 -4 -4 -4 -3 -3 -3 -3 -2 -2 -1 -1 ------- Run | Yrd Mat Sub Mat Fac Sto Rec Fac Upp Upp War Pro Fac Upp Upp Zhi Pro Res Arm Lab Res Qua Acc Com Maximum Alert Level 5 | . . . 1 . 1 . 1 . . . . 2 . . . . 2 1 . 1 1 2 5 Low Security (%) 68 | 100 100 . 86 100 28 100 25 . . . . 35 . . . . . 77 . 81 34 28 1 Level 1 25 | . . . 13 . 71 . 74 . . . . 33 . . . . . 22 . 18 65 25 65 Level 2 5 | . . . . . . . . . . . . 30 . . . . 100 . . . . 46 30 Level 3 . | . . . . . . . . . . . . . . . . . . . . . . . . Level 4 . | . . . . . . . . . . . . . . . . . . . . . . . . Level 5 . | . . . . . . . . . . . . . . . . . . . . . . . 2 High Security . | . . . . . . . . . . . . . . . . . . . . . . . . Max Security . | . . . . . . . . . . . . . . . . . . . . . . . . Peak Influence 567 | 15 60 . 244 105 369 138 304 . . . . 567 . . . . 467 261 . 255 393 511 515 Initial 450 | . . . . 105 . 108 200 . . . . . . . . . 450 234 . . 103 208 310 Average 125 | 2 18 . 106 27 227 12 233 . . . . 247 . . . . 456 115 . 77 230 336 355 Influence Increases 15745 | 20 341 . 689 84 903 240 514 276 235 985 130 727 50 120 . 205 467 220 . 583 435 388 8133 Destroy 0b10 Robot/C 7780 | . 220 . 460 40 440 100 100 240 200 960 120 300 40 100 . 180 . 60 . 280 160 140 3640 Destroy 0b10 Robot/NC 275 | 20 40 . 35 20 30 . . . . 25 . 25 . . . 5 . 5 . 5 . 15 50 Destroy Leader 662 | . 64 . 106 20 138 . 20 20 20 . 10 52 10 20 . 20 . 22 . 70 20 20 30 Allied During Kill 248 | . . . . . 172 18 36 16 . . . . . . . . . 6 . . . . . Successful Hack 185 | . 17 . 26 3 31 30 8 . . . . 28 . . . . . 27 . . . 15 . Select Force Hacks 90 | . . . . . . 90 . . . . . . . . . . . . . . . . . Disable Machine 615 | . . . 45 . 75 . 90 . . . . 120 . . . . 15 15 . 15 135 . 105 Anti-Garrison Action 50 | . . . . . . . . . . . . . . . . . . . . . . . 50 Destroy Structure 4890 | . . . 2 1 2 2 60 . . . . 202 . . . . 2 40 . 93 120 183 4183 Advance Influence 650 | . . . . . . . 200 . . . . . . . . . 450 . . . . . . Partial Spotted 105 | . . . . . . . . . . . . . . . . . . 45 . 30 . . 30 Lose Combat Pursuer 195 | . . . 15 . 15 . . . 15 . . . . . . . . . . 90 . 15 45 Influence Decreases 8086 | 20 341 . 457 316 625 518 218 360 201 386 975 176 365 146 210 205 20 643 24 398 272 250 960 Entered New Map 2635 | . . . . 127 . 170 . 110 41 246 845 . 205 46 210 . . 213 24 . 82 140 176 Time Decay 4484 | 20 326 . 387 189 425 336 198 190 130 130 130 166 160 90 . 185 20 300 . 358 170 100 474 Lost Part 457 | . 15 . 70 . . 12 . . . 10 . 10 . 10 . 20 . 50 . 40 20 10 190 Lost Ally 510 | . . . . . 200 . 20 60 30 . . . . . . . . 80 . . . . 120 Squads Dispatched 45 | . 4 . 1 2 6 . 1 . . . . 4 . . . . . 6 . . 4 3 14 Investigation 7 | . 1 . . . . . . . . . . 2 . . . . . . . . 1 2 1 Extermination 12 | . . . . 1 3 . . . . . . 1 . . . . . 2 . . 1 . 4 Reinforcement 23 | . 3 . 1 1 3 . . . . . . . . . . . . 4 . . 2 1 8 Assault 2 | . . . . . . . . . . . . 1 . . . . . . . . . . 1 Garrison 1 | . . . . . . . 1 . . . . . . . . . . . . . . . . Intercept . | . . . . . . . . . . . . . . . . . . . . . . . . Searches Triggered . | . . . . . . . . . . . . . . . . . . . . . . . . Construction Impeded 2 | . . . . . . . . . . . . . . . . . . . . . 1 1 . Haulers Reinforced 1 | . . . . . 1 . . . . . . . . . . . . . . . . . . Active Scanning Responses . | . . . . . . . . . . . . . . . . . . . . . . . . Cargo Convoy Interrupts . | . . . . . . . . . . . . . . . . . . . . . . . . Stealth | -11 -10 -10 -8 -7 -7 -7 -5 -5 -5 -5 -4 -4 -4 -4 -4 -3 -3 -3 -3 -2 -2 -1 -1 --------- Run | Yrd Mat Sub Mat Fac Sto Rec Fac Upp Upp War Pro Fac Upp Upp Zhi Pro Res Arm Lab Res Qua Acc Com Distress Signals 13 | . 1 . 2 . . . . . . 1 . 1 . . . . . . . 5 . . 3 Communications Jammed . | . . . . . . . . . . . . . . . . . . . . . . . . Distress Signals . | . . . . . . . . . . . . . . . . . . . . . . . . Times Spotted 361 | . 20 2 35 4 35 12 6 11 13 72 6 12 2 8 . 14 . 8 . 24 20 16 41 Peak Tracking Total 19 | . 2 2 5 1 4 2 3 5 5 19 5 6 2 4 . 4 . 6 . 4 9 8 8 Tactical Retreats 12 | . . . 1 . 1 . . . 1 . . . . . . . . . . 5 . 1 3 Traps | -11 -10 -10 -8 -7 -7 -7 -5 -5 -5 -5 -4 -4 -4 -4 -4 -3 -3 -3 -3 -2 -2 -1 -1 ------- Run | Yrd Mat Sub Mat Fac Sto Rec Fac Upp Upp War Pro Fac Upp Upp Zhi Pro Res Arm Lab Res Qua Acc Com Traps Triggered 4 | . 1 . . . 1 . . . . . . . . . . . . . . . . 2 . Indirectly . | . . . . . . . . . . . . . . . . . . . . . . . . Trap Hack Attempts . | . . . . . . . . . . . . . . . . . . . . . . . . Triggered . | . . . . . . . . . . . . . . . . . . . . . . . . Disarmed . | . . . . . . . . . . . . . . . . . . . . . . . . Reprogrammed . | . . . . . . . . . . . . . . . . . . . . . . . . Reused . | . . . . . . . . . . . . . . . . . . . . . . . . Traps Extracted . | . . . . . . . . . . . . . . . . . . . . . . . . Installed . | . . . . . . . . . . . . . . . . . . . . . . . . Triggered . | . . . . . . . . . . . . . . . . . . . . . . . . Machines | -11 -10 -10 -8 -7 -7 -7 -5 -5 -5 -5 -4 -4 -4 -4 -4 -3 -3 -3 -3 -2 -2 -1 -1 ---------- Run | Yrd Mat Sub Mat Fac Sto Rec Fac Upp Upp War Pro Fac Upp Upp Zhi Pro Res Arm Lab Res Qua Acc Com Machines Disabled 46 | . . . 3 . 5 . 6 . . 2 . 8 . . . . 1 1 . 1 9 . 10 Max in Single Turn 6 | . . . 1 . 2 . 4 . . 1 . 3 . . . . 1 1 . 1 1 . 6 Garrison Access 2 | . . . . . 1 . . . . . . . . . . . . . . 1 . . . Phase Generator 1 | . . . . . . . . . . . . . . . . . . . . . . . 1 Machines Repaired . | . . . . . . . . . . . . . . . . . . . . . . . . Machines Dismantled . | . . . . . . . . . . . . . . . . . . . . . . . . Machines Sabotaged . | . . . . . . . . . . . . . . . . . . . . . . . . Overloaded Fab Kills . | . . . . . . . . . . . . . . . . . . . . . . . . Hacking | -11 -10 -10 -8 -7 -7 -7 -5 -5 -5 -5 -4 -4 -4 -4 -4 -3 -3 -3 -3 -2 -2 -1 -1 --------- Run | Yrd Mat Sub Mat Fac Sto Rec Fac Upp Upp War Pro Fac Upp Upp Zhi Pro Res Arm Lab Res Qua Acc Com Machines Accessed 63 | . 6 . 10 2 7 11 4 . . 1 . 3 . . 4 . . 3 . 1 5 5 1 Terminals 41 | . 4 . 6 1 5 6 3 . . . . 2 . . . . . 2 . 1 5 5 1 Fabricators 2 | . . . . 1 . . . . . . . . . . . . . 1 . . . . . Repair Stations . | . . . . . . . . . . . . . . . . . . . . . . . . Recycling Units 10 | . 2 . 2 . 1 4 . . . . . 1 . . . . . . . . . . . Scanalyzers 2 | . . . 1 . . . 1 . . . . . . . . . . . . . . . . Garrison Access 2 | . . . 1 . 1 . . . . . . . . . . . . . . . . . . Total Hacks 138 | . 14 . 23 4 13 25 7 . . 1 . 9 . . 17 . . 5 . 1 7 11 1 Successful 82 | . 8 . 17 3 7 18 2 . . 1 . 2 . . 17 . . 2 . . 2 3 . Failed 56 | . 6 . 6 1 6 7 5 . . . . 7 . . . . . 3 . 1 5 8 1 Catastrophic 11 | . 1 . . . 2 1 1 . . . . 1 . . . . . . . 1 3 . 1 Database Lockouts . | . . . . . . . . . . . . . . . . . . . . . . . . Manual 54 | . 11 . 12 2 8 15 2 . . . . . . . . . . . 1 . 1 . 2 Terminals 82 | . 10 . 12 3 10 12 5 . . . . 7 . . . . . 3 . 1 7 11 1 Fabricators 3 | . . . . 1 . . . . . . . . . . . . . 2 . . . . . Repair Stations . | . . . . . . . . . . . . . . . . . . . . . . . . Recycling Units 21 | . 4 . 2 . 2 11 . . . . . 2 . . . . . . . . . . . Scanalyzers 9 | . . . 7 . . . 2 . . . . . . . . . . . . . . . . Garrison Access 3 | . . . 2 . 1 . . . . . . . . . . . . . . . . . . Terminal Hacks 40 | . 2 . 3 1 1 5 2 . . 1 . 2 . . 17 . . 1 . . 2 3 . Record 7 | . . . . 1 . . . . . . . . . . 5 . . . . . 1 . . Part Schematic 4 | . . . . . . . . . . . . . . . 4 . . . . . . . . Robot Schematic 1 | . . . . . 1 . . . . . . . . . . . . . . . . . . Robot Analysis 5 | . . . . . . 1 . . . . . . . . 4 . . . . . . . . Prototype ID Bank 5 | . . . . . . . . . . . . 1 . . 4 . . . . . . . . Open Door 6 | . . . . . . . . . . 1 . . . . . . . 1 . . 1 3 . Branch Access Points 2 | . . . 1 . . . 1 . . . . . . . . . . . . . . . . Terminal Index 3 | . 1 . 2 . . . . . . . . . . . . . . . . . . . . Zone Layout 5 | . 1 . . . . 2 1 . . . . 1 . . . . . . . . . . . Release Object 2 | . . . . . . 2 . . . . . . . . . . . . . . . . . Fabricator Hacks 2 | . . . . 1 . . . . . . . . . . . . . 1 . . . . . Network Status 1 | . . . . 1 . . . . . . . . . . . . . . . . . . . Build 1 | . . . . . . . . . . . . . . . . . . 1 . . . . . Repair Station Hacks . | . . . . . . . . . . . . . . . . . . . . . . . . Recycling Unit Hacks 8 | . 1 . 2 . . 5 . . . . . . . . . . . . . . . . . Retrieve Components 8 | . 1 . 2 . . 5 . . . . . . . . . . . . . . . . . Scanalyzer 7 | . . . 7 . . . . . . . . . . . . . . . . . . . . Retrieve Study 7 | . . . 7 . . . . . . . . . . . . . . . . . . . . Garrison Access Hacks 1 | . . . . . 1 . . . . . . . . . . . . . . . . . . Seal Access 1 | . . . . . 1 . . . . . . . . . . . . . . . . . . Unauthorized Hacks 24 | . 5 . 5 1 5 8 . . . . . . . . . . . . . . . . . Terminals 21 | . 5 . 5 1 5 5 . . . . . . . . . . . . . . . . . Botnet 1 | . 1 . . . . . . . . . . . . . . . . . . . . . . Skim 20 | . 4 . 5 1 5 5 . . . . . . . . . . . . . . . . . Fabricators . | . . . . . . . . . . . . . . . . . . . . . . . . Repair Stations . | . . . . . . . . . . . . . . . . . . . . . . . . Recycling Units 3 | . . . . . . 3 . . . . . . . . . . . . . . . . . Tunnel 3 | . . . . . . 3 . . . . . . . . . . . . . . . . . Scanalyzers . | . . . . . . . . . . . . . . . . . . . . . . . . Garrison Access . | . . . . . . . . . . . . . . . . . . . . . . . . Data Cores Recovered 1 | . . . . . . . . . . . . . . . . . . . . 1 . . . Used . | . . . . . . . . . . . . . . . . . . . . . . . . Hacking Detections 45 | . 5 . 8 2 5 6 3 . . . . 3 . . . . . 2 . 1 3 5 2 Full Trace Events 8 | . 2 . . . . 1 . . . . . 2 . . . . . . . . 1 2 . Feedback Events . | . . . . . . . . . . . . . . . . . . . . . . . . Feedback Blocked . | . . . . . . . . . . . . . . . . . . . . . . . . Robot Schematics Acquired 1 | . . . . . 1 . . . . . . . . . . . . . . . . . . Robots Built 3 | . . . . . . . . . . . . . . . . . . 3 . . . . . Authchips . | . . . . . . . . . . . . . . . . . . . . . . . . Time 62 | . . . . . . . . . . . . . . . . . . 62 . . . . . Total Robot Build Rating 21 | . . . . . . . . . . . . . . . . . . 21 . . . . . Part Schematics Acquired 4 | . . . . . . . . . . . . . . . 4 . . . . . . . . Parts Built . | . . . . . . . . . . . . . . . . . . . . . . . . Authchips . | . . . . . . . . . . . . . . . . . . . . . . . . Time . | . . . . . . . . . . . . . . . . . . . . . . . . Total Part Build Rating . | . . . . . . . . . . . . . . . . . . . . . . . . Part Studies Acquired 7 | . . . 7 . . . . . . . . . . . . . . . . . . . . Parts Repaired . | . . . . . . . . . . . . . . . . . . . . . . . . Time . | . . . . . . . . . . . . . . . . . . . . . . . . Parts Recycled . | . . . . . . . . . . . . . . . . . . . . . . . . Recycled Matter . | . . . . . . . . . . . . . . . . . . . . . . . . Retrieved Matter . | . . . . . . . . . . . . . . . . . . . . . . . . Retrieved Components 30 | . 6 . 17 . . 7 . . . . . . . . . . . . . . . . . Parts Scanalyzed . | . . . . . . . . . . . . . . . . . . . . . . . . Part Schematics Acquired . | . . . . . . . . . . . . . . . . . . . . . . . . Parts Damaged . | . . . . . . . . . . . . . . . . . . . . . . . . Bothacking | -11 -10 -10 -8 -7 -7 -7 -5 -5 -5 -5 -4 -4 -4 -4 -4 -3 -3 -3 -3 -2 -2 -1 -1 ------------ Run | Yrd Mat Sub Mat Fac Sto Rec Fac Upp Upp War Pro Fac Upp Upp Zhi Pro Res Arm Lab Res Qua Acc Com Used RIF Installer . | . . . . . . . . . . . . . . . . . . . . . . . . Robots Hacked 8 | . . . . . . 1 . . . 3 . . . . . . . . . 4 . . . Non-combat 1 | . . . . . . . . . . . . . . . . . . . . 1 . . . Combat 7 | . . . . . . 1 . . . 3 . . . . . . . . . 3 . . . Robot Hacks Applied 9 | . . . . . . 1 . . . 3 . . . . . . . . . 5 . . . parse_system 9 | . . . . . . 1 . . . 3 . . . . . . . . . 5 . . . Relay Couplers Released 4 | . . . . . . . . . . . . . . . . . . . . 4 . . . Machine Destruction 4 | . . . . . . . . . . . . . . . . . . . . 4 . . . Fabnet Peak Effective % . | . . . . . . . . . . . . . . . . . . . . . . . . Robots Rewired 10 | . . . . . . 6 . . . . . . . . . . . 4 . . . . . Allies Hacked 1 | . . . . . . . . . . . . . . . . . . 1 . . . . . Hacks Repelled . | . . . . . . . . . . . . . . . . . . . . . . . . Allies | -11 -10 -10 -8 -7 -7 -7 -5 -5 -5 -5 -4 -4 -4 -4 -4 -3 -3 -3 -3 -2 -2 -1 -1 -------- Run | Yrd Mat Sub Mat Fac Sto Rec Fac Upp Upp War Pro Fac Upp Upp Zhi Pro Res Arm Lab Res Qua Acc Com Total Allies 29 | . . . . . 10 6 . . . . . . . . . . . 7 . . . . 6 Largest Group 10 | . . . . . 10 6 6 5 2 . . . . . . . . 4 . . . . 6 Highest-Rated Group 192 | . . . . . 173 174 174 140 56 . . . . . . . . 192 . . . . 85 Highest-Rated Ally 48 | . . . . . 29 40 40 40 40 . . . . . . . . 48 . . . . 15 Total Orders . | . . . . . . . . . . . . . . . . . . . . . . . . Ally Attacks 154 | . . . . . 107 15 13 12 2 . . . . . . . . 5 . . . . . Total Damage 2446 | . . . . . 1354 424 432 123 29 . . . . . . . . 84 . . . . . Kills 17 | . . . . . 11 3 . 2 . . . . . . . . . 1 . . . . . Allies Corrupted 2 | . . . . . . . . . . . . . . . . . . 2 . . . . . Allies Melted 2 | . . . . . . . . . . 1 . . . . . . . . . 1 . . . Intel | -11 -10 -10 -8 -7 -7 -7 -5 -5 -5 -5 -4 -4 -4 -4 -4 -3 -3 -3 -3 -2 -2 -1 -1 ------- Run | Yrd Mat Sub Mat Fac Sto Rec Fac Upp Upp War Pro Fac Upp Upp Zhi Pro Res Arm Lab Res Qua Acc Com Active Infowar (turns) 6665 | 22 408 . . . . . 94 377 275 882 649 578 323 197 132 510 47 678 268 1225 . . . Optics 946 | . . . . . . . . . . . . . . . . 389 47 510 . . . . . Sensors 2118 | . . . . . . . 94 377 275 868 . . . . . . 33 471 . . . . . IFF 3969 | . . . . . . . . . . . 649 501 323 197 132 489 16 169 268 1225 . . . Seismic 430 | 22 408 . . . . . . . . . . . . . . . . . . . . . . Decoding 1122 | . . . . . . . . . . . . 511 323 197 91 . . . . . . . . Cloaking 1884 | . . . . . . . . . . 14 574 434 323 197 80 . 31 231 . . . . . Robot Analysis Total 5 | . . . . . . 1 . . . . . . . . 4 . . . . . . . . Derelict Logs Recovered 7 | . . . . . . . . 1 1 . 2 . 2 1 . . . . . . . . . Drone Launches . | . . . . . . . . . . . . . . . . . . . . . . . . Drone Recoveries . | . . . . . . . . . . . . . . . . . . . . . . . . Decoded 0b10 Intel 30 | . . . . . . . . . . . . 30 . . . . . . . . . . . Items 30 | . . . . . . . . . . . . 30 . . . . . . . . . . . Exploration | -11 -10 -10 -8 -7 -7 -7 -5 -5 -5 -5 -4 -4 -4 -4 -4 -3 -3 -3 -3 -2 -2 -1 -1 ------------- Run | Yrd Mat Sub Mat Fac Sto Rec Fac Upp Upp War Pro Fac Upp Upp Zhi Pro Res Arm Lab Res Qua Acc Com Turns Passed 16527 | 121 1180 196 1070 579 1339 2805 410 382 275 1094 649 578 323 197 132 510 47 705 268 1864 345 210 1248 Spaces Moved 11439 | 64 572 76 533 323 652 1226 409 326 288 822 381 396 284 191 154 507 85 669 27 1782 354 262 1056 Core 52 | 18 . . . . . . . . . . . . . . . . . . . . . . 34 Treads 2519 | 46 572 76 179 323 652 671 . . . . . . . . . . . . . . . . . Legs 1024 | . . . 284 . . . . 84 . 206 45 . . . . . . . . 390 . . 15 Wheels 1174 | . . . 70 . . 278 272 . . . 336 218 . . . . . . . . . . . Hover 3204 | . . . . . . 277 137 74 . . . . 88 191 154 163 . . . 651 354 262 853 Flight 3466 | . . . . . . . . 168 288 616 . 178 196 . . 344 85 669 27 741 . . 154 Fastest Speed 34 | 50 160 160 90 160 160 75 70 70 71 71 132 70 70 78 78 41 41 34 34 34 67 67 50 Average Speed 99 | 129 160 193 146 160 160 157 76 80 71 83 132 104 72 78 78 67 41 37 34 65 68 67 87 Slowest Speed 850 | 160 160 240 320 160 160 220 85 123 71 132 132 132 78 78 78 78 41 41 34 124 150 150 850 Overloaded Moves . | . . . . . . . . . . . . . . . . . . . . . . . . Propulsion Burnouts . | . . . . . . . . . . . . . . . . . . . . . . . . Robots Hopped 3 | . . . . . . . . . . 2 . 1 . . . . . . . . . . . Potential Cave-ins 29 | . . . . . . . . . . . . . . . . . . 29 . . . . . Cave-ins Triggered 6 | . . . . . . . . . . . . . . . . . . 5 . 1 . . . Teleports 2 | . . . . . . . . . . . . . . . . . . 1 . . 1 . . Exploration Rate (%) 42 | 6 71 8 66 9 88 98 11 39 51 91 59 17 52 47 60 67 4 30 12 40 40 11 38 Regions Visited 23 Branch Regions 15 Pre-discovered Areas 16 | . . . 2 . 2 7 . . . . . . 1 1 3 . . . . . . . . Known Exits Taken 12 | . . . 1 1 . 1 1 1 1 1 . . . . . . 1 1 1 1 1 . . Unknown Exits Taken 11 | 1 1 1 . . 1 . . . . . 1 1 1 1 1 1 . . . . . 1 . Scrap Searched 7 | . . . . . . . . 1 1 . 4 . . . . 1 . . . . . . . Spaces Dug 31 | . . . . . . 2 1 1 . 2 . 6 . . . . . 15 . 3 1 . . Terrain Destroyed 4322 | . . 23 . . . 2 31 3 115 126 52 113 6 32 . 20 . 72 . 125 39 95 3468 Melee 7 | . . . . . . . . . . . . . . . . . . 4 . 2 1 . . Projectile 145 | . . . . . . 2 6 3 3 4 2 9 6 11 . 20 . 68 . 11 . . . AOE 4170 | . . 23 . . . . 25 . 112 122 50 104 . 21 . . . . . 112 38 95 3468 Terrain Rammed . | . . . . . . . . . . . . . . . . . . . . . . . . Walls Destroyed . | . . . . . . . . . . . . . . . . . . . . . . . . Machines Disabled . | . . . . . . . . . . . . . . . . . . . . . . . . Actions | -11 -10 -10 -8 -7 -7 -7 -5 -5 -5 -5 -4 -4 -4 -4 -4 -3 -3 -3 -3 -2 -2 -1 -1 --------- Run | Yrd Mat Sub Mat Fac Sto Rec Fac Upp Upp War Pro Fac Upp Upp Zhi Pro Res Arm Lab Res Qua Acc Com Total 15760 | 88 702 106 703 366 889 2068 487 420 340 1212 522 511 389 225 168 643 93 1039 285 2418 433 290 1363 Wait 3156 | . 44 17 41 5 106 771 38 59 28 333 126 58 91 24 . 103 2 234 259 548 18 19 232 Move 11408 | 63 571 75 532 322 651 1225 408 325 287 818 380 393 283 190 153 506 84 665 26 1781 353 261 1056 Hop 2 | . . . . . . . . . . 1 . 1 . . . . . . . . . . . Pick Up 180 | 11 8 1 31 9 35 11 8 3 4 9 6 2 . . 7 . 1 15 . 3 12 . 4 Fast Attach 32 | 1 . . 1 . 3 1 1 2 . 3 . 1 . . . 3 2 6 . 5 1 1 1 Attach 100 | 6 3 1 18 2 14 3 . 1 2 3 4 3 1 1 3 . 1 8 . 8 9 . 9 Detach 31 | . . . 1 . 3 3 1 . 2 3 . 2 1 . . . . 4 . 5 5 . 1 Swap 39 | . 3 . 5 8 7 3 4 . . 1 . 3 . . . 1 1 1 . 1 1 . . Drop 157 | . 3 . 10 8 35 19 7 4 2 17 2 3 1 . 5 1 . 17 . 6 8 1 8 Fire 619 | 7 70 12 64 12 35 32 20 26 15 24 4 45 12 10 . 28 2 82 . 48 16 8 47 Melee 26 | . . . . . . . . . . . . . . . . . . 4 . 13 9 . . Ram 3 | . . . . . . . . . . . . . . . . 1 . . . . 1 . 1 Kick 4 | . . . . . . . . . . . . . . . . . . . . . . . 4 Crush . | . . . . . . . . . . . . . . . . . . . . . . . . Escape Stasis 3 | . . . . . . . . . . . . . . . . . . 3 . . . . . Rewire . | . . . . . . . . . . . . . . . . . . . . . . . . Trap . | . . . . . . . . . . . . . . . . . . . . . . . . Miscellaneous . | . . . . . . . . . . . . . . . . . . . . . . . . Route ------- -11/Scrapyard -10/Materials (discovered 5 exits: [*Mat x2] / [*Min x2] / [*Sub]) -10/Subcaves -8/Materials (discovered 2 exits: *Fac x2) -7/Factory (discovered 3 exits: Fac / *Sto / *Low) -7/Storage (discovered 2 exits: *Fac / *Rec) -7/Recycling -5/Factory (discovered 4 exits: *Upp x2 / Ext x2) -5/Upper Caves -5/Upper Caves -5/Warlord -4/Proximity Caves -4/Factory -4/Upper Caves -4/Upper Caves -4/Zhirov -3/Proximity Caves -3/Research -3/Armory -3/Lab -2/Research (discovered 2 exits: *Acc / *Qua) -2/Quarantine -1/Access -1/Command History --------- Turn | Location | Event 6 | -11/Scrapyard | Discovered new exit (range 15) 122 | -11/Scrapyard | Entered Materials 317 | -10/Materials | Build established: Mutant 321 | -10/Materials | Discovered new exit (range 6) 622 | -10/Materials | Discovered new exit (range 14) 823 | -10/Materials | Discovered new exit (range 12) 914 | -10/Materials | Discovered new exit (range 5) 1059 | -10/Materials | Core integrity fell below 50% 1238 | -10/Materials | Discovered new exit (range 12) 1302 | -10/Materials | Entered Subcaves 1303 | -10/Subcaves | Approached by a straggling Scientist 1449 | -10/Subcaves | Lost 3 parts (1n2w) 1450 | -10/Subcaves | Discovered new exit (range 13) 1498 | -10/Subcaves | Entered Materials 1498 | -8/Materials | Evolved 4 slots: Propulsion x1, Utility x2, Weapon x1 1681 | -8/Materials | Lost 4 parts (1p1n2w) 2163 | -8/Materials | Learned 12 Factory zone layouts 2216 | -8/Materials | Lost 3 parts (2n1w) 2228 | -8/Materials | Learned 2 Storage zone layouts 2281 | -8/Materials | Learned 4 Factory zone layouts 2324 | -8/Materials | Identified exit to Factory 2357 | -8/Materials | Learned location of Zion (-7) 2409 | -8/Materials | Learned location of Extension (-5) 2415 | -8/Materials | Build established: Scavenger-Tank 2451 | -8/Materials | Learned 4 Recycling zone layouts 2501 | -8/Materials | Discovered exit to Factory (range 11) 2568 | -8/Materials | Entered Factory 2568 | -7/Factory | Evolved 2 slots: Propulsion x1, Utility x1 2569 | -7/Factory | Identified exit to Storage 2570 | -7/Factory | Identified exit to Factory 2570 | -7/Factory | Identified exit to Lower Caves 3087 | -7/Factory | Build established: Scavenger-Gunner 3147 | -7/Factory | Entered Storage 3199 | -7/Storage | Met 01-MTF 3455 | -7/Storage | Assisted by bots powering up and referring to "LRC-V3" 3554 | -7/Storage | Lost 4 allies 3690 | -7/Storage | Discovered exit to Factory (range 15) 3717 | -7/Storage | P-60 Hacker assimilated allied Y-54 Guardian 3720 | -7/Storage | Learned location of Armory (-3) 3793 | -7/Storage | Found Prototype Launcher 3794 | -7/Storage | Identified Scatter Rocket Array 4106 | -7/Storage | Learned 2 Extension zone layouts 4138 | -7/Storage | Discovered new exit (range 6) 4169 | -7/Storage | Learned Extension stockpile data 4223 | -7/Storage | Learned location of Lower Caves (-6) 4269 | -7/Storage | Learned 2 Lower Caves zone layouts 4304 | -7/Storage | Learned 2 Hub_04(d) zone layouts 4329 | -7/Storage | Learned 4 Upper Caves zone layouts 4365 | -7/Storage | Learned Factory trap positions 4486 | -7/Storage | Entered Recycling 4486 | -7/Recycling | Accompanied by 2 allies (01-MTF) 4487 | -7/Recycling | Identified exit to Factory 4563 | -7/Recycling | Build established: Scavenger-Tank 4958 | -7/Recycling | Lost 3 parts (2n1u) 5285 | -7/Recycling | Build established: Commander-Gunner 5373 | -7/Recycling | Entered Scraplab 5379 | -7/Recycling | Found Prototype Device 5379 | -7/Recycling | Identified Scrap Engine 5490 | -7/Recycling | Learned Factory emergency access door positions 5522 | -7/Recycling | Learned Extension garrison access intel 5574 | -7/Recycling | Learned location of 2 exits from Archives 5617 | -7/Recycling | Learned location of Warlord (-5) 5913 | -7/Recycling | Build established: Commander-Construct 7019 | -7/Recycling | Destroyed 01-MTF 7291 | -7/Recycling | Entered Factory 7291 | -5/Factory | Accompanied by 6 allies 7291 | -5/Factory | Evolved 4 slots: Power x1, Propulsion x2, Weapon x1 7292 | -5/Factory | Loaded intel: 91 trap records 7375 | -5/Factory | Identified exit to Upper Caves 7375 | -5/Factory | Identified exit to Extension 7407 | -5/Factory | Garrison activated, responded to threat 7701 | -5/Factory | Entered Upper Caves 7701 | -5/Upper Caves | Accompanied by 5 allies 7702 | -5/Upper Caves | Identified exit to Upper Caves 7853 | -5/Upper Caves | Lost 3 allies 7927 | -5/Upper Caves | Attracted the attention of an 0b10 checkpoint 7956 | -5/Upper Caves | Learned Factory garrison access intel 8066 | -5/Upper Caves | Found Alien Artifact 8066 | -5/Upper Caves | Identified Core Expander 8066 | -5/Upper Caves | Installed Core Expander, added new Utility slot 8083 | -5/Upper Caves | Entered another Upper Caves area 8083 | -5/Upper Caves | Accompanied by 2 allies 8110 | -5/Upper Caves | Build established: Construct 8136 | -5/Upper Caves | Encountered a Warlord checkpoint 8264 | -5/Upper Caves | Learned 4 Factory zone layouts 8353 | -5/Upper Caves | Discovered new exit (range 8) 8357 | -5/Upper Caves | Identified exit to Warlord 8358 | -5/Upper Caves | Entered Warlord 8714 | -5/Warlord | Met Warlord 8739 | -5/Warlord | Warlord's base attacked by MAIN.C 8766 | -5/Warlord | Found Prototype Energy Gun 8766 | -5/Warlord | Identified Vortex Shotgun 8778 | -5/Warlord | Found Prototype Launcher 8778 | -5/Warlord | Identified Vortex Catalyst Activator 8806 | -5/Warlord | Found Vortex Shotgun 8981 | -5/Warlord | Found Prototype Reactor 8984 | -5/Warlord | Found Prototype Device 8984 | -5/Warlord | Identified Exp. Cloaking Device 8993 | -5/Warlord | Found Prototype Hackware 8997 | -5/Warlord | Found Prototype Processor 9046 | -5/Warlord | Spotted B-75 Beast 9050 | -5/Warlord | Destroyed B-75 Beast 9074 | -5/Warlord | Lost 4 allies 9077 | -5/Warlord | Destroyed 8 combat bots 9089 | -5/Warlord | Warlord forces counterattacked 9159 | -5/Warlord | Spotted Striker 9168 | -5/Warlord | Spotted Executioner 9177 | -5/Warlord | Destroyed Executioner 9207 | -5/Warlord | Destroyed 11 combat bots 9215 | -5/Warlord | Lost 15 allies 9239 | -5/Warlord | Spotted Executioner 9239 | -5/Warlord | Spotted Striker 9239 | -5/Warlord | Spotted Executioner 9239 | -5/Warlord | Destroyed Executioner 9239 | -5/Warlord | Destroyed Executioner 9262 | -5/Warlord | Destroyed 15 combat bots 9339 | -5/Warlord | Spotted Executioner 9349 | -5/Warlord | Discovered new exit (range 15) 9379 | -5/Warlord | Destroyed 14 combat bots 9385 | -5/Warlord | Lost 10 allies 9414 | -5/Warlord | Warlord base infiltrated, sounded retreat 9438 | -5/Warlord | Identified exit to Proximity Caves 9444 | -5/Warlord | Spotted Striker 9452 | -5/Warlord | Entered Proximity Caves 9486 | -4/Proximity Caves | Destroyed 9 combat bots 10004 | -4/Proximity Caves | Learned Research garrison access intel 10051 | -4/Proximity Caves | Attracted the attention of an 0b10 checkpoint 10087 | -4/Proximity Caves | Discovered new exit (range 9) 10101 | -4/Proximity Caves | Entered Factory 10101 | -4/Factory | Evolved 2 slots: Utility x2 10103 | -4/Factory | Loaded intel: 3 garrison access locations 10263 | -4/Factory | Identified System Mapper 10329 | -4/Factory | Found Quantum Capacitor 10601 | -4/Factory | First assault squad dispatched 10658 | -4/Factory | System corruption reached 10% 10676 | -4/Factory | Discovered new exit (range 6) 10679 | -4/Factory | Entered Upper Caves 10872 | -4/Upper Caves | Learned Research interactive machine intel 10980 | -4/Upper Caves | Discovered new exit (range 15) 11002 | -4/Upper Caves | Entered another Upper Caves area 11135 | -4/Upper Caves | Learned location of Quarantine (-2) 11192 | -4/Upper Caves | Discovered new exit (range 7) 11199 | -4/Upper Caves | Entered Zhirov 11199 | -4/Zhirov | Discovered new exit (range 3) 11214 | -4/Zhirov | Met Zhirov 11229 | -4/Zhirov | Learned location of Testing (-3) 11229 | -4/Zhirov | Learned location of Command (-1) 11236 | -4/Zhirov | Zhirov requested help retrieving the SGEMP Prototype 11251 | -4/Zhirov | Found Alien Artifact 11252 | -4/Zhirov | Identified Integrated Reactor 11252 | -4/Zhirov | Installed Integrated Reactor, increased core energy generation (+10) 11266 | -4/Zhirov | Found Alien Artifact 11331 | -4/Zhirov | Entered Proximity Caves 11334 | -3/Proximity Caves | Spotter reported a threat 11427 | -3/Proximity Caves | Spotter reported a threat 11480 | -3/Proximity Caves | Spotter reported a threat 11800 | -3/Proximity Caves | Discovered new exit (range 20) 11841 | -3/Proximity Caves | Entered Research 11841 | -3/Research | Evolved 2 slots: Power x1, Utility x1 11842 | -3/Research | Identified exit to Armory 11843 | -3/Research | Loaded intel: 47 interactive machine locations 11844 | -3/Research | Loaded intel: 4 garrison access locations 11888 | -3/Research | Entered Armory 11968 | -3/Armory | Fabricated G-67 Veteran (x3) 12037 | -3/Armory | Lost 3 allies 12048 | -3/Armory | Found Prototype Processor 12048 | -3/Armory | Identified Spectral Analyzer (x2) 12153 | -3/Armory | Build established: Scout 12359 | -3/Armory | Crushed by falling debris 12373 | -3/Armory | Crushed by falling debris 12390 | -3/Armory | System corruption reached 10% 12398 | -3/Armory | Crushed by falling debris 12399 | -3/Armory | Crushed by falling debris 12419 | -3/Armory | Crushed by falling debris 12420 | -3/Armory | System corruption reached 30% 12450 | -3/Armory | Lost 4 parts (4u) 12517 | -3/Armory | Identified Transdimensional Reconstructor 12517 | -3/Armory | Warped through subspace to slip node 12517 | -3/Armory | Discovered new exit (range 1) 12517 | -3/Armory | Identified exit to Lab 12593 | -3/Armory | Entered Lab 12593 | -3/Lab | Discovered new exit (range 9) 12596 | -3/Lab | Identified exit to Research 12691 | -3/Lab | Build established: Mutant 12825 | -3/Lab | Unable to decrypt terminal 12825 | -3/Lab | Opened the door to a hidden lab 12861 | -3/Lab | Gained access to the hidden lab's interior 12861 | -3/Lab | Unable to decrypt terminal 12861 | -3/Lab | Entered Research 12861 | -2/Research | Warlord forces began assault on 0b10 12861 | -2/Research | Evolved 2 slots: Power x1, Propulsion x1 12971 | -2/Research | Research machine network offline 13185 | -2/Research | Spotted Striker 13186 | -2/Research | Build established: Hacker-Mutant 13190 | -2/Research | Spotted Executioner 13192 | -2/Research | Discovered new exit (range 16) 13214 | -2/Research | Destroyed Striker 13223 | -2/Research | Identified exit to Access 13293 | -2/Research | Found Prototype Device 13293 | -2/Research | Identified Adv. Kinecellerator 13301 | -2/Research | Found Prototype Processor 13303 | -2/Research | Identified Exp. Core Analyzer 13347 | -2/Research | Discovered new exit (range 16) 13353 | -2/Research | Identified exit to Quarantine 13410 | -2/Research | Borebot progress halted 13472 | -2/Research | Borebot progress halted 13486 | -2/Research | Spotted Executioner 13492 | -2/Research | Destroyed Executioner 13585 | -2/Research | Build established: Generator-Mutant 13781 | -2/Research | Met DD-05H 13782 | -2/Research | Met up with Warlord 13826 | -2/Research | Borebot progress halted 13941 | -2/Research | Spotted B-90 Cyclops 14079 | -2/Research | Spotted Executioner 14080 | -2/Research | Spotted Executioner 14082 | -2/Research | Destroyed Executioner 14091 | -2/Research | Destroyed Executioner 14104 | -2/Research | Crushed by falling debris 14174 | -2/Research | Spotted Striker 14178 | -2/Research | Spotted Striker 14198 | -2/Research | Spotted Executioner 14230 | -2/Research | Lost 3 allies 14265 | -2/Research | Spotted Executioner 14303 | -2/Research | Destroyed Striker 14310 | -2/Research | Destroyed Executioner 14315 | -2/Research | Destroyed Executioner 14364 | -2/Research | Build established: Generator-Construct 14364 | -2/Research | Given Cave Seal Controls access code 14722 | -2/Research | Spotted 4Q-T97(L) 14723 | -2/Research | Spotted Striker 14725 | -2/Research | Entered Quarantine 14733 | -2/Quarantine | Spotted Alpha 7 14744 | -2/Quarantine | Found Alien Launcher 14797 | -2/Quarantine | Lost 5 allies 14817 | -2/Quarantine | Found Sigix Corpse 14826 | -2/Quarantine | Found Sigix Corpse 14857 | -2/Quarantine | Cryocooling Duct disabled 14872 | -2/Quarantine | Ambient heat levels rising (+20) 14872 | -2/Quarantine | Non-combat units ordered to evacuate 14887 | -2/Quarantine | Found Alien Slashing Weapon 14912 | -2/Quarantine | Identified Sigix Broadsword 14916 | -2/Quarantine | Found Transdimensional Reconstructor 14918 | -2/Quarantine | Found Alien Artifact 14926 | -2/Quarantine | Found Alien Artifact 14931 | -2/Quarantine | Warped through subspace 14935 | -2/Quarantine | Found Alien Artifact 14938 | -2/Quarantine | Found Alien Artifact 14956 | -2/Quarantine | Met incapacitated Sigix Warrior 14956 | -2/Quarantine | Lockdown squad dispatched 14959 | -2/Quarantine | Acquired the access code to the Sigix quarantine chamber 14960 | -2/Quarantine | Unlocked Sigix quarantine chamber 14964 | -2/Quarantine | Found Sigix Containment Pod 15005 | -2/Quarantine | Spotted Lightning 15006 | -2/Quarantine | Spotted Lightning 15009 | -2/Quarantine | Spotted Lightning 15040 | -2/Quarantine | Found Alien Artifact 15059 | -2/Quarantine | Discovered exit to Access (range 13) 15070 | -2/Quarantine | Entered Access 15070 | -1/Access | Evolved 2 slots: Propulsion x1, Utility x1 15275 | -1/Access | Discovered new exit (range 8) 15280 | -1/Access | Entered Command 15281 | -1/Command | Identified Subatomic Replicator 15281 | -1/Command | Used Subatomic Replicator to create Alien Launcher 15284 | -1/Command | Identified Supercharged Sigix Terminator 15360 | -1/Command | Build established: Generator-Mutant 15361 | -1/Command | Found Prototype Device 15362 | -1/Command | Identified Exp. Shock Absorption System 15404 | -1/Command | Disengaged cave seal 15419 | -1/Command | Welcomed Warlord to Command 15551 | -1/Command | Lost 12 allies 15870 | -1/Command | Phase Generator disabled 15958 | -1/Command | P-80 Master assimilated allied 4A-GHD(K) 15959 | -1/Command | Spotted 4A-GHD(K) 16489 | -1/Command | Spotted B-99 Colossus 16499 | -1/Command | Fired Supercharged Sigix Terminator 16499 | -1/Command | MAIN.C activated Command garrisons 16500 | -1/Command | Core integrity fell below 50% 16500 | -1/Command | Core integrity fell below 20% 16503 | -1/Command | Identified Hpw. Transdimensional Reconstructor (x2) 16503 | -1/Command | Failed to warp due to unstable space 16504 | -1/Command | Identified Core Reset Matrix 16504 | -1/Command | Identified Dimensional Node Initializer 16504 | -1/Command | Used Core Reset Matrix 16505 | -1/Command | Initialized slip node 16508 | -1/Command | Emitted hypermatrix ping 16510 | -1/Command | Warlord destroyed during the assault 16513 | -1/Command | Assembled emerged from beneath the floor 16520 | -1/Command | Destroyed 168 combat bots 16523 | -1/Command | Spotted Alpha 7 16528 | -1/Command | Core destroyed Last Messages --------------- 01010111 01001001 01001100 01001100 01110010 01100101 01110100 01110101 01110010 01101110" 16510_ Warlord destroyed. 16513_ Assembled emerge from beneath the floor. 16519_ Penetrated by Slug. 16519_ Slug penetrates as-27480. 16519_ as-27480 destroyed. 16520_ Acquired 11 matter. 16521_ Slug penetrates as-65969. 16522_ as-65969 destroyed. 16522_ as-83959 destroyed. 16522_ Slug penetrates as-01683. 16522_ as-01683 destroyed. 16524_ Slug penetrates as-71517. 16524_ as-71517 suffers critical hit (Destroy). 16524_ as-71517 destroyed. 16524_ as-33241 destroyed. 16528_ Dimensional Slip Node implodes. 16528_ Scrap Engine destroyed. [Achievement: Rambo] Map ----- +----------------------------------------------------+ | ???????????????????????????????? " ????????? | | ????????????????????????????? """" ! ????????? | | ??????????????????????????? " " ????????? | | ????????????????????????? = """" ???????? | | ??????????????????????? """" "" ??????? | | ????????????????????? " ! " " ""R"?????? | | ???????????????????? " ![ """" """?????? | | ??????????????????? " " " ??????? | | ?????????????????? " " " ???????? | | ????????????????? """"""""""""""""""#+######## | | ???????????????? ; ^ | | ??????????????? ;;;% ^ | | ?????????????? ; | | ?????????????? ; [ | | ????????????? ;;; %% | | ????????????? ;;;;; ; %% | | ????????????" ; ; ; % | | ????????????" ; ; ;;;;;;;; "" | | ????????????; ; ; ; ; ; "" | | ??????????? ;;;;;;;; ;;; ; ;;;;;""""" | | ??????????? ; ; " | | ?????????? ; ; " | | ?????????? ; ; """ | | ?????????? ; ; " | | ?????????? ;;;;;;;; ;;;; ;;;;;;;; " | | ?????????? ; ; ; %@ ;;;;;;;;;;;;;;" | | ?????????? ; ; ; ! | | ?????????? ; ; ; ; %;;;;;;;;;;;;;""#/## | | ?????????? ; ;;;;; ; ; ;; ?????? | | ??????????? ; ; ; ;; ?????? | | ??????????? ; ; ; ;; ??????? | | ????????????;; ; ; ;; ??????? | | ???????????? ; ; ; ;; ???????? | | ???????????? ; ; ; ;" ????????? | | ?????????????; ; ; ;" ?????????? | | ?????????????" ; ; ""??????????? | | ?????????????? ; ;;;;;;;; ;"???????????? | | ?????????????? ; ; ;""????????????? | | ???????????????? ;; ;; ;""??????????????? | | ?????????????????? ; ;;"""????????????????? | | ????????????????????? ; ???????????????????? | | ???????????????????????" ?????????????????????? | | ?????????????????????????????????????????????????? | | ?????????????????????????????????????????????????? | | ?????????????????????????????????????????????????? | | ?????????????????????????????????????????????????? | | ?????????????????????????????????????????????????? | | ?????????????????????????????????????????????????? | | ?????????????????????????????????????????????????? | | ?????????????????????????????????????????????????? | +----------------------------------------------------+ Best States ------------- Heat Dissipation 93 Coolant Potential 120 Energy Generation 87 Energy Capacity 983 Matter Stores 300 Matter Capacity 300 Sight Range 24 Robot Scan Range 16 Terrain Scan Density 10 Cloak Strength 4 EM Shielding 4 Armor Coverage 300 Resistance: EX 75 Utility Shielding 90 Point Defense Rating 240 Weapon Cycling 25 Evasion (%) 67 Core Analysis 8 Recoil Reduction 5 Matter Filtering 50 Kinecelleration 30 Offensive Hacking 22 Defensive Hacking 26 Authchip Count 1 Item Schematics ----------------- None Robot Schematics ------------------ None Fabricated ------------ G-67 Veteran | x3 | -3/Armory | Preloaded Repaired ---------- Nothing Studied --------- None Alien Tech Used ----------------- Core Expander Integrated Reactor Transdimensional Reconstructor Sigix Broadsword Subatomic Replicator Supercharged Sigix Terminator High-powered Transdimensional Reconstructor Core Reset Matrix Dimensional Node Initializer Achievements -------------- I'm Taking You All With Me Launcher Specialist Rambo WMD Challenges ------------ None Game ------ Seed AnalysisPlatingCalibrator Manual? 0 Play Time 02:23:38 Cumulative 598.6 hours Start 2025.12.04 @ 17:47:29 End 2025.12.04 @ 20:20:09 Sessions 3 Manual Loads 0 Difficulty Rogue Special Mode None Game No. 766 Rogue 766 Adventurer 0 Explorer 0 Win Type - Total 21 Types 10/1/2/2/2/0/2/2/0/0 Lore% 94 Gallery% 90 Achievement% 77 Wizard Run 0 Options --------- Layout 2 ASCII 0 Keyboard 0 Movement Mouse Keybinds 0 Fullscreen 2 Font 24/Smallcaps Map View 50x49 Zoom Use 0% Tactical HUD 1 Map Filters NONE Filters NONE Steam 1 RUN: 841523bb-f213-48b3-825c-f60d61f12a6b